fUSD/lending_fUSD_20250525
["ID","MTS","AMOUNT","RATE_DAILY","PERIOD"]
[362276263,1748144742149,-484.26,0.00019085,2]
[362276264,1748144742174,-11.85303556,0.0001912,2]
[362276265,1748144798282,150.0,0.00017552,2]
[362276266,1748144803044,531.14,0.00017133,2]
[362276267,1748144815092,-269.57,0.00019051,2]
[362276268,1748144815116,-76.89496794,0.0001912,2]
[362276269,1748144851093,-1136.0119965,0.0001912,2]
[362276270,1748144851114,-312.35,0.00019228,2]
[362276271,1748144851135,-531.14,0.00019397,2]
[362276272,1748144851156,-150.0,0.00019488,7]
[362276273,1748144851177,-190.23517223,0.000195,2]
[362276275,1748145032047,-855.83944016,0.00019103,2]
[362276276,1748145032058,-144.16055984,0.00019103,2]
[362276277,1748145032068,-150.0,0.0001912,7]
[362276278,1748145032078,-803.67482777,0.000195,2]
[362276279,1748145032087,-161.928412,0.00019599,2]
[362276280,1748145032097,-353.4,0.000196,2]
[362276281,1748145032106,-165.54,0.00019782,2]
[362276282,1748145032117,-458.34,0.000198,2]
[362276283,1748145032126,-207.4,0.00019888,2]
[362276284,1748145032138,-1574.7712,0.000199,2]
[362276285,1748145032148,-1200.0,0.00019972,2]
[362276286,1748145032159,-173.23150445,0.00019973,2]
[362276287,1748145032169,-502.93448441,0.00019973,2]
[362276288,1748145032180,-296.92114305,0.00019973,2]
[362276289,1748145032190,-500.0,0.00019973,2]
[362276290,1748145032199,-151.0,0.00019988,2]
[362276291,1748145032208,-162.91184745,0.00019989,2]
[362276292,1748145032219,-195.0866276,0.00019989,2]
[362276293,1748145032230,-203.4025073,0.00019989,2]
[362276294,1748145032240,-500.0,0.00019989,2]
[362276295,1748145032250,-507.46178726,0.00019989,2]
[362276296,1748145032261,-500.0,0.00019989,2]
[362276297,1748145032271,-500.0,0.00019989,2]
[362276298,1748145032282,-500.0,0.00019989,2]
[362276299,1748145032290,-500.0,0.00019989,2]
[362276300,1748145032300,-456.87944411,0.00019989,2]
[362276301,1748145032309,-500.0,0.00019989,2]
[362276302,1748145032318,-500.0,0.00019989,2]
[362276303,1748145032328,-500.0,0.00019989,2]
[362276304,1748145032337,-500.0,0.00019989,2]
[362276305,1748145032347,-564.94787424,0.00019989,2]
[362276306,1748145032356,-500.0,0.00019989,2]
[362276307,1748145032367,-376.136,0.00019989,2]
[362276308,1748145032376,-420.0,0.00019989,2]
[362276309,1748145032386,-420.0,0.00019989,2]
[362276311,1748145032395,-283.8,0.00019989,2]
[362276312,1748145032404,-420.0,0.00019989,2]
[362276313,1748145032413,-420.0,0.00019989,2]
[362276314,1748145032423,-420.0,0.00019989,2]
[362276315,1748145032432,-420.0,0.00019989,2]
[362276316,1748145032448,-420.0,0.00019989,2]
[362276317,1748145032458,-420.0,0.00019989,2]
[362276318,1748145032467,-420.0,0.00019989,2]
[362276319,1748145032479,-502.70773156,0.00019989,2]
[362276321,1748145032488,-420.0,0.00019989,2]
[362276323,1748145032498,-420.0,0.00019989,2]
[362276325,1748145032507,-420.0,0.00019989,2]
[362276327,1748145032518,-34657.78593431,0.0001999,7]
[362276329,1748145032531,-2936.10577291,0.0001999,7]
[362276331,1748145032543,-10357.11855145,0.0001999,7]
[362276334,1748145032560,-362.5,0.0001999,7]
[362276337,1748145032576,-3658.4018293,0.0001999,7]
[362276340,1748145032587,-3671.85916806,0.0001999,7]
[362276355,1748145038137,-11213.33823622,0.0001999,7]
[362276356,1748145038353,-1259.33545494,0.0001999,7]
[362276357,1748145038367,-1172.528378,0.0001999,7]
[362276358,1748145038383,-660.22079313,0.0001999,7]
[362276359,1748145038408,-1819.34320958,0.0001999,7]
[362276409,1748145040139,-498.41166384,0.00019989,2]
[362276411,1748145040149,-99.82280286,0.0001999,7]
[362276433,1748145040355,-11617.46672778,0.0001999,7]
[362276439,1748145040412,-1110.24515047,0.0001999,7]
[362276445,1748145040468,-711288.46168182,0.0001999,7]
[362276447,1748145040478,-53516.0928275,0.00019996,2]
[362276449,1748145040488,-4617.2312074,0.00019996,2]
[362276451,1748145040499,-1855.8650211,0.00019996,2]
[362276453,1748145040509,-151.0,0.00019996,2]
[362276455,1748145040518,-405.50453737,0.00019998,2]
[362276457,1748145040529,-170.05898294,0.00019998,2]
[362276459,1748145040539,-500.0,0.00019998,2]
[362276461,1748145040550,-420.0,0.00019998,2]
[362276463,1748145040559,-420.0,0.00019998,2]
[362276465,1748145040569,-420.0,0.00019998,2]
[362276467,1748145040579,-150.0,0.00019999,2]
[362276469,1748145040588,-500.0,0.00019999,2]
[362276471,1748145040597,-500.0,0.00019999,2]
[362276472,1748145040608,-500.0,0.00019999,2]
[362276473,1748145040619,-500.0,0.00019999,2]
[362276474,1748145040629,-500.0,0.00019999,2]
[362276475,1748145040638,-408.44,0.00019999,2]
[362276476,1748145040647,-305.82682915,0.00019999,2]
[362276477,1748145040657,-456.92697963,0.00019999,2]
[362276479,1748145040667,-457.10535459,0.00019999,2]
[362276481,1748145040676,-471.90918214,0.00019999,2]
[362276483,1748145040686,-435.78064502,0.00019999,2]
[362276486,1748145040696,-448.71674003,0.00019999,2]
[362276488,1748145040705,-440.67893294,0.00019999,2]
[362276489,1748145040716,-453.25693464,0.00019999,2]
[362276491,1748145040725,-374.81762994,0.00019999,2]
[362276493,1748145040735,-442.68128329,0.00019999,2]
[362276495,1748145040745,-448.3471975,0.00019999,2]
[362276497,1748145040754,-451.45185265,0.00019999,2]
[362276499,1748145040764,-486.04631295,0.00019999,2]
[362276501,1748145040773,-420.0,0.00019999,2]
[362276503,1748145040782,-420.0,0.00019999,2]
[362276505,1748145040792,-420.0,0.00019999,2]
[362276508,1748145040802,-420.0,0.00019999,2]
[362276511,1748145040811,-420.0,0.00019999,2]
[362276514,1748145040820,-420.0,0.00019999,2]
[362276516,1748145040830,-420.0,0.00019999,2]
[362276518,1748145040840,-420.0,0.00019999,2]
[362276520,1748145040850,-420.0,0.00019999,2]
[362276522,1748145040865,-420.0,0.00019999,2]
[362276524,1748145040877,-420.0,0.00019999,2]
[362276526,1748145040886,-233.1708273,0.00019999,2]
[362276528,1748145040896,-500.0,0.00019999,2]
[362276530,1748145040905,-500.0,0.00019999,2]
[362276532,1748145040915,-450.68,0.00019999,2]
[362276534,1748145040924,-431.60901282,0.00019999,2]
[362276536,1748145040933,-433.63703301,0.00019999,2]
[362276538,1748145040943,-433.62717936,0.00019999,2]
[362276540,1748145040953,-420.0,0.00019999,2]
[362276542,1748145040963,-420.0,0.00019999,2]
[362276544,1748145040972,-527.84929381,0.00019999,2]
[362276546,1748145040982,-420.0,0.00019999,2]
[362276548,1748145040991,-420.0,0.00019999,2]
[362276550,1748145041000,-420.0,0.00019999,2]
[362276552,1748145041010,-420.0,0.00019999,2]
[362276554,1748145041020,-312.94855858,0.00019999,2]
[362276556,1748145041029,-420.0,0.00019999,2]
[362276558,1748145041038,-420.0,0.00019999,2]
[362276560,1748145041049,-420.0,0.00019999,2]
[362276562,1748145041058,-420.0,0.00019999,2]
[362276564,1748145041068,-420.0,0.00019999,2]
[362276566,1748145041077,-420.0,0.00019999,2]
[362276568,1748145041087,-420.0,0.00019999,2]
[362276570,1748145041097,-420.0,0.00019999,2]
[362276572,1748145041107,-420.0,0.00019999,2]
[362276574,1748145041117,-420.0,0.00019999,2]
[362276576,1748145041127,-420.0,0.00019999,2]
[362276579,1748145041137,-420.0,0.00019999,2]
[362276581,1748145041147,-420.0,0.00019999,2]
[362276583,1748145041157,-420.0,0.00019999,2]
[362276585,1748145041168,-420.0,0.00019999,2]
[362276587,1748145041177,-420.0,0.00019999,2]
[362276589,1748145041187,-420.0,0.00019999,2]
[362276591,1748145041196,-420.0,0.00019999,2]
[362276592,1748145041205,-420.0,0.00019999,2]
[362276594,1748145041215,-281.20476375,0.00019999,2]
[362276597,1748145041226,-420.0,0.00019999,2]
[362276599,1748145041235,-520.43276498,0.00019999,2]
[362276601,1748145041245,-420.0,0.00019999,2]
[362276603,1748145041254,-420.0,0.00019999,2]
[362276604,1748145041264,-420.0,0.00019999,2]
[362276607,1748145041274,-420.0,0.00019999,2]
[362276609,1748145041283,-420.0,0.00019999,2]
[362276611,1748145041294,-420.0,0.00019999,2]
[362276613,1748145041305,-420.0,0.00019999,2]
[362276615,1748145041317,-163.97151981,0.00019999,2]
[362276617,1748145041326,-367.9180236,0.00019999,2]
[362276619,1748145041335,-750.92,0.00019999,2]
[362276621,1748145041346,-750.92,0.00019999,2]
[362276623,1748145041355,-750.92,0.00019999,2]
[362276625,1748145041366,-750.92,0.00019999,2]
[362276627,1748145041375,-750.92,0.00019999,2]
[362276629,1748145041387,-750.92,0.00019999,2]
[362276631,1748145041397,-750.92,0.00019999,2]
[362276633,1748145041407,-750.92,0.00019999,2]
[362276635,1748145041417,-750.92,0.00019999,2]
[362276637,1748145041426,-750.92,0.00019999,2]
[362276639,1748145041435,-750.92,0.00019999,2]
[362276641,1748145041444,-750.92,0.00019999,2]
[362276643,1748145041457,-602.87,0.00019999,2]
[362276645,1748145041466,-750.92,0.00019999,2]
[362276646,1748145041476,-602.87,0.00019999,2]
[362276648,1748145041486,-750.92,0.00019999,2]
[362276649,1748145041497,-750.92,0.00019999,2]
[362276650,1748145041507,-602.87,0.00019999,2]
[362276651,1748145041516,-750.92,0.00019999,2]
[362276652,1748145041526,-750.92,0.00019999,2]
[362276653,1748145041537,-602.87,0.00019999,2]
[362276654,1748145041547,-750.92,0.00019999,2]
[362276655,1748145041556,-602.87,0.00019999,2]
[362276656,1748145041566,-750.92,0.00019999,2]
[362276657,1748145041576,-602.87,0.00019999,2]
[362276658,1748145041585,-750.92,0.00019999,2]
[362276659,1748145041595,-602.87,0.00019999,2]
[362276660,1748145041604,-750.92,0.00019999,2]
[362276661,1748145041616,-602.87,0.00019999,2]
[362276662,1748145041626,-750.92,0.00019999,2]
[362276663,1748145041636,-602.87,0.00019999,2]
[362276664,1748145041646,-750.92,0.00019999,2]
[362276665,1748145041657,-602.87,0.00019999,2]
[362276666,1748145041668,-602.87,0.00019999,2]
[362276667,1748145041678,-602.87,0.00019999,2]
[362276668,1748145041690,-602.87,0.00019999,2]
[362276669,1748145041700,-602.87,0.00019999,2]
[362276670,1748145041709,-751.0329,0.00019999,2]
[362276671,1748145041719,-602.87,0.00019999,2]
[362276672,1748145041731,-602.87,0.00019999,2]
[362276673,1748145041740,-602.87,0.00019999,2]
[362276674,1748145041750,-602.87,0.00019999,2]
[362276675,1748145041759,-602.87,0.00019999,2]
[362276676,1748145041768,-602.87,0.00019999,2]
[362276677,1748145041778,-602.87,0.00019999,2]
[362276678,1748145041787,-602.87,0.00019999,2]
[362276679,1748145041797,-420.0,0.00019999,2]
[362276680,1748145041808,-602.87,0.00019999,2]
[362276681,1748145041817,-475.1412014,0.00019999,2]
[362276682,1748145041826,-602.96483806,0.00019999,2]
[362276683,1748145041836,-327.16325603,0.00019999,2]
[362276684,1748145041845,-420.0,0.00019999,2]
[362276685,1748145041855,-420.0,0.00019999,2]
[362276686,1748145041864,-420.0,0.00019999,2]
[362276687,1748145041874,-420.0,0.00019999,2]
[362276688,1748145041884,-420.0,0.00019999,2]
[362276689,1748145041894,-420.0,0.00019999,2]
[362276690,1748145041905,-420.0,0.00019999,2]
[362276691,1748145041915,-420.0,0.00019999,2]
[362276692,1748145041924,-420.0,0.00019999,2]
[362276693,1748145041934,-420.0,0.00019999,2]
[362276694,1748145041944,-716.43,0.00019999,2]
[362276695,1748145041953,-716.43,0.00019999,2]
[362276696,1748145041965,-420.0,0.00019999,2]
[362276697,1748145041976,-716.43,0.00019999,2]
[362276698,1748145041986,-420.0,0.00019999,2]
[362276699,1748145041995,-393.75001935,0.00019999,2]
[362276700,1748145042005,-716.43,0.00019999,2]
[362276701,1748145042014,-716.43,0.00019999,2]
[362276702,1748145042024,-716.43,0.00019999,2]
[362276703,1748145042033,-716.43,0.00019999,2]
[362276704,1748145042043,-716.43,0.00019999,2]
[362276705,1748145042052,-716.43,0.00019999,2]
[362276706,1748145042062,-716.43,0.00019999,2]
[362276707,1748145042071,-716.43,0.00019999,2]
[362276708,1748145042080,-716.43,0.00019999,2]
[362276709,1748145042090,-716.43,0.00019999,2]
[362276710,1748145042099,-716.43,0.00019999,2]
[362276711,1748145042108,-716.43,0.00019999,2]
[362276712,1748145042119,-716.43,0.00019999,2]
[362276713,1748145042129,-716.43,0.00019999,2]
[362276714,1748145042139,-716.43,0.00019999,2]
[362276715,1748145042148,-716.43,0.00019999,2]
[362276716,1748145042158,-716.43,0.00019999,2]
[362276717,1748145042167,-716.43,0.00019999,2]
[362276718,1748145042176,-716.43,0.00019999,2]
[362276719,1748145042185,-716.43,0.00019999,2]
[362276720,1748145042195,-716.5933,0.00019999,2]
[362276721,1748145042204,-420.0,0.00019999,2]
[362276722,1748145042214,-420.0,0.00019999,2]
[362276723,1748145042223,-420.0,0.00019999,2]
[362276724,1748145042232,-420.0,0.00019999,2]
[362276725,1748145042241,-420.0,0.00019999,2]
[362276726,1748145042251,-420.0,0.00019999,2]
[362276727,1748145042261,-420.0,0.00019999,2]
[362276728,1748145042270,-420.0,0.00019999,2]
[362276729,1748145042279,-420.0,0.00019999,2]
[362276730,1748145042289,-420.0,0.00019999,2]
[362276731,1748145042298,-420.0,0.00019999,2]
[362276732,1748145042307,-420.0,0.00019999,2]
[362276733,1748145042316,-420.0,0.00019999,2]
[362276734,1748145042326,-420.0,0.00019999,2]
[362276735,1748145042335,-420.0,0.00019999,2]
[362276736,1748145042344,-420.0,0.00019999,2]
[362276737,1748145042354,-420.0,0.00019999,2]
[362276738,1748145042363,-420.0,0.00019999,2]
[362276739,1748145042372,-420.0,0.00019999,2]
[362276740,1748145042383,-420.0,0.00019999,2]
[362276741,1748145042392,-249.50562501,0.00019999,2]
[362276742,1748145042401,-20000.0,0.00019999,2]
[362276743,1748145042411,-559.4250461,0.0002,2]
[362276744,1748145042420,-589500.48155064,0.0002,2]
[362276745,1748145042430,-403272.4971395,0.0002,2]
[362276746,1748145042439,-115514.76874279,0.0002,2]
[362276751,1748145043208,-2237.44254138,0.0002,2]
[362276752,1748145043220,-5385.02181436,0.0002,2]
[362276753,1748145043233,-1946.3216785,0.0002,2]
[362276754,1748145043427,-12733.04687116,0.0002,2]
[362276892,1748145046206,-34705.74579652,0.0002,2]
[362276893,1748145046218,-151.0,0.0002,2]
[362276894,1748145046228,-60805.07738588,0.0002,2]
[362276895,1748145046261,-8225.79698699,0.0002,2]
[362276896,1748145046499,-370.39217423,0.0002,2]
[362276901,1748145168766,176.86,0.00015419,2]
[362276903,1748145352039,21.95226026,0.00013699,2]
[362276904,1748145352061,293.39773974,0.00013699,2]
[362276905,1748145758789,250.0,0.00015,2]
[362276906,1748145759886,300.0,0.00017,2]
[362276907,1748145940164,-887.72604482,0.00018897,2]
[362276909,1748146232229,-150.0,0.0001885,7]
[362276910,1748146232239,-1000.0,0.00018876,2]
[362276911,1748146232248,-1200.0,0.00018897,2]
[362276912,1748146232258,-8.60206527,0.00018898,2]
[362276913,1748146232281,-8575.43793473,0.00018898,2]
[362276914,1748146232291,-350.0,0.00019,2]
[362276915,1748146232300,-650.33307664,0.00019,2]
[362276916,1748146232309,-155.95,0.0001902,2]
[362276917,1748146232318,-151.0,0.00019057,2]
[362276918,1748146232327,-207.4,0.00019057,2]
[362276919,1748146232337,-1000.65470425,0.00019069,2]
[362276920,1748146232346,-156.17,0.00019158,2]
[362276921,1748146232356,-216.001189,0.00019599,2]
[362276922,1748146232365,-1609.52,0.000196,2]
[362276923,1748146232376,-301.2,0.000196,2]
[362276924,1748146232385,-151.0,0.00019662,2]
[362276925,1748146232394,-150.43,0.00019726,2]
[362276926,1748146232409,-150.0,0.00019728,2]
[362276927,1748146232419,-150.0,0.00019729,2]
[362276928,1748146232442,-150.0,0.00019731,2]
[362276929,1748146232467,-150.0,0.00019753,2]
[362276930,1748146232479,-150.0,0.0001976,2]
[362276931,1748146232494,-150.0,0.00019769,2]
[362276932,1748146232504,-150.0,0.0001978,2]
[362276933,1748146232513,-195.99798883,0.00019799,2]
[362276935,1748146232523,-150.0,0.00019806,2]
[362276937,1748146232544,-150.0,0.00019814,2]
[362276938,1748146232553,-150.0,0.00019815,2]
[362276939,1748146232563,-150.0,0.00019817,2]
[362276941,1748146232572,-150.0,0.00019832,2]
[362276942,1748146232581,-150.0,0.00019833,2]
[362276943,1748146232591,-150.0,0.00019837,2]
[362276944,1748146232603,-150.0,0.00019843,2]
[362276945,1748146232612,-150.0,0.00019848,2]
[362276946,1748146232622,-150.0,0.00019855,2]
[362276947,1748146232643,-150.0,0.00019861,2]
[362276948,1748146232662,-150.0,0.00019867,2]
[362276950,1748146232681,-150.0,0.00019869,2]
[362276952,1748146232709,-150.0,0.00019874,2]
[362276953,1748146232719,-150.0,0.00019876,2]
[362276954,1748146232729,-150.0,0.00019886,2]
[362276955,1748146232740,-829.021,0.0001989,2]
[362276957,1748146232765,-885.342,0.0001989,2]
[362276958,1748146232776,-1165.339,0.0001989,2]
[362276960,1748146232786,-150.0,0.00019891,2]
[362276962,1748146232797,-150.0,0.00019894,2]
[362276964,1748146232807,-150.0,0.00019899,2]
[362276966,1748146232816,-150.0,0.00019913,2]
[362276968,1748146232829,-152.79166619,0.00019916,2]
[362276970,1748146232838,-290.42934843,0.00019917,2]
[362276972,1748146232847,-150.0,0.00019947,2]
[362276973,1748146232867,-150.0,0.00019947,2]
[362276974,1748146232876,-152.3963851,0.00019948,2]
[362276975,1748146232886,-150.0,0.00019948,2]
[362276976,1748146232895,-150.0,0.00019949,2]
[362276978,1748146232906,-150.0,0.00019952,2]
[362276980,1748146232917,-150.0,0.00019963,2]
[362276982,1748146232926,-150.0,0.00019976,2]
[362276984,1748146232936,-150.0,0.00019979,2]
[362276986,1748146232945,-7504.03246523,0.00019979,2]
[362276988,1748146232954,-150.0,0.00019984,2]
[362276989,1748146232963,-602.111,0.00019988,2]
[362276991,1748146232972,-185.16457413,0.00019988,2]
[362276993,1748146232981,-451.66087492,0.00019988,2]
[362276994,1748146232990,-186.41615756,0.00019988,2]
[362276995,1748146232999,-500.0,0.00019988,2]
[362276996,1748146233008,-500.0,0.00019988,2]
[362276997,1748146233018,-500.0,0.00019988,2]
[362276998,1748146233027,-500.0,0.00019988,2]
[362276999,1748146233036,-360.26906701,0.00019988,2]
[362277000,1748146233046,-500.0,0.00019988,2]
[362277001,1748146233055,-500.0,0.00019988,2]
[362277002,1748146233064,-500.0,0.00019988,2]
[362277003,1748146233073,-500.0,0.00019988,2]
[362277004,1748146233082,-749.37,0.00019989,2]
[362277005,1748146233092,-420.0,0.00019989,2]
[362277006,1748146233101,-481.7250049,0.00019989,2]
[362277007,1748146233110,-435.78064502,0.00019989,2]
[362277008,1748146233121,-459.99679538,0.00019989,2]
[362277009,1748146233130,-440.67893294,0.00019989,2]
[362277010,1748146233139,-427.58270359,0.00019989,2]
[362277011,1748146233148,-800.25,0.00019989,2]
[362277012,1748146233166,-800.25,0.00019989,2]
[362277013,1748146233175,-800.25,0.00019989,2]
[362277014,1748146233185,-374.81762994,0.00019989,2]
[362277015,1748146233195,-469.77656794,0.00019989,2]
[362277016,1748146233204,-451.45185265,0.00019989,2]
[362277017,1748146233213,-420.0,0.00019989,2]
[362277018,1748146233223,-500.0,0.00019989,2]
[362277019,1748146233232,-500.0,0.00019989,2]
[362277020,1748146233242,-486.04631295,0.00019989,2]
[362277021,1748146233252,-431.60901282,0.00019989,2]
[362277022,1748146233261,-327.31,0.00019989,2]
[362277023,1748146233272,-367.9180236,0.00019989,2]
[362277024,1748146233281,-327.16325603,0.00019989,2]
[362277025,1748146233290,-448.46849202,0.00019989,2]
[362277026,1748146233300,-447.3956851,0.00019989,2]
[362277027,1748146233309,-526.02820942,0.00019989,2]
[362277028,1748146233319,-420.0,0.00019989,2]
[362277029,1748146233328,-420.0,0.00019989,2]
[362277030,1748146233338,-442.98502287,0.00019989,2]
[362277031,1748146233347,-463.56777735,0.00019989,2]
[362277032,1748146233357,-420.0,0.00019989,2]
[362277033,1748146233366,-323.12493341,0.00019989,2]
[362277034,1748146233375,-420.0,0.00019989,2]
[362277035,1748146233384,-405.50453737,0.00019989,2]
[362277036,1748146233394,-170.05898294,0.00019989,2]
[362277037,1748146233403,-420.0,0.00019989,2]
[362277038,1748146233413,-420.0,0.00019989,2]
[362277039,1748146233422,-420.0,0.00019989,2]
[362277040,1748146233433,-524.00156556,0.00019989,2]
[362277041,1748146233442,-412.03763997,0.00019989,2]
[362277042,1748146233452,-1627.05,0.00019989,2]
[362277043,1748146233462,-1627.05,0.00019989,2]
[362277044,1748146233472,-1627.05,0.00019989,2]
[362277045,1748146233482,-193.68167774,0.00019989,2]
[362277046,1748146233491,-276.67191843,0.00019989,2]
[362277047,1748146233501,-420.0,0.00019989,2]
[362277048,1748146233511,-319.15515588,0.00019989,2]
[362277049,1748146233520,-522.49,0.00019989,2]
[362277050,1748146233530,-522.49,0.00019989,2]
[362277051,1748146233539,-522.49,0.00019989,2]
[362277052,1748146233549,-420.0,0.00019989,2]
[362277053,1748146233558,-420.0,0.00019989,2]
[362277054,1748146233567,-420.0,0.00019989,2]
[362277055,1748146233577,-420.0,0.00019989,2]
[362277056,1748146233586,-420.0,0.00019989,2]
[362277057,1748146233596,-184.22914876,0.00019989,2]
[362277058,1748146233605,-420.0,0.00019989,2]
[362277059,1748146233615,-420.0,0.00019989,2]
[362277060,1748146233625,-420.0,0.00019989,2]
[362277061,1748146233634,-1994.74,0.00019989,2]
[362277062,1748146233643,-1994.74,0.00019989,2]
[362277063,1748146233652,-1994.74,0.00019989,2]
[362277064,1748146233662,-420.0,0.00019989,2]
[362277065,1748146233671,-328.83166032,0.00019989,2]
[362277066,1748146233680,-420.0,0.00019989,2]
[362277067,1748146233689,-470.60791826,0.00019989,2]
[362277068,1748146233698,-456.91653315,0.00019989,2]
[362277069,1748146233707,-420.0,0.00019989,2]
[362277070,1748146233716,-216.80503252,0.00019989,2]
[362277071,1748146233726,-458.21250602,0.00019989,2]
[362277072,1748146233735,-500.0,0.00019989,2]
[362277073,1748146233744,-500.0,0.00019989,2]
[362277074,1748146233754,-500.0,0.00019989,2]
[362277075,1748146233763,-602.87,0.00019989,2]
[362277076,1748146233776,-602.87,0.00019989,2]
[362277077,1748146233786,-602.87,0.00019989,2]
[362277078,1748146233795,-513.85834873,0.0001999,2]
[362277079,1748146233804,-513.85834873,0.0001999,2]
[362277080,1748146233814,-513.85834873,0.0001999,2]
[362277081,1748146233825,-150.0,0.00019991,2]
[362277082,1748146233836,-7180.9291948,0.00019996,2]
[362277083,1748146233845,-83088.9889892,0.00019996,2]
[362277084,1748146233854,-3530.7634734,0.00019996,2]
[362277085,1748146233863,-500.0,0.00019998,2]
[362277086,1748146233873,-6996.51130055,0.00019998,2]
[362277087,1748146233882,-800.25,0.00019998,2]
[362277088,1748146233892,-1627.05,0.00019998,2]
[362277089,1748146233901,-500.0,0.00019998,2]
[362277090,1748146233912,-522.49,0.00019998,2]
[362277091,1748146233921,-420.0,0.00019998,2]
[362277092,1748146233930,-420.0,0.00019998,2]
[362277093,1748146233940,-420.0,0.00019998,2]
[362277094,1748146233949,-1994.74,0.00019998,2]
[362277095,1748146233958,-420.0,0.00019998,2]
[362277096,1748146233967,-196.3732927,0.00019998,2]
[362277097,1748146233976,-205.95339471,0.00019998,2]
[362277098,1748146233986,-161.97382518,0.00019998,2]
[362277099,1748146233995,-420.0,0.00019998,2]
[362277100,1748146234004,-500.0,0.00019998,2]
[362277101,1748146234014,-1273.63,0.00019998,2]
[362277102,1748146234023,-420.0,0.00019998,2]
[362277103,1748146234032,-420.0,0.00019998,2]
[362277104,1748146234041,-602.87,0.00019998,2]
[362277105,1748146234050,-420.0,0.00019998,2]
[362277106,1748146234060,-709.13,0.00019998,2]
[362277107,1748146234069,-420.0,0.00019998,2]
[362277108,1748146234078,-420.0,0.00019998,2]
[362277109,1748146234087,-420.0,0.00019998,2]
[362277110,1748146234097,-420.0,0.00019998,2]
[362277111,1748146234106,-420.0,0.00019998,2]
[362277112,1748146234115,-420.0,0.00019998,2]
[362277113,1748146234125,-420.0,0.00019998,2]
[362277114,1748146234134,-420.0,0.00019998,2]
[362277115,1748146234143,-351.30025133,0.00019998,2]
[362277116,1748146234152,-491.49546925,0.00019998,2]
[362277117,1748146234161,-420.0,0.00019998,2]
[362277118,1748146234170,-748.71,0.00019998,2]
[362277119,1748146234180,-527.68,0.00019998,2]
[362277120,1748146234189,-474.97641517,0.00019998,2]
[362277121,1748146234198,-305.82682915,0.00019998,2]
[362277122,1748146234207,-532.52081877,0.00019998,2]
[362277123,1748146234216,-420.0,0.00019998,2]
[362277124,1748146234225,-420.0,0.00019999,2]
[362277125,1748146234235,-346.03803955,0.00019999,2]
[362277126,1748146234244,-433.38287466,0.00019999,2]
[362277127,1748146234254,-800.25,0.00019999,2]
[362277128,1748146234263,-800.25,0.00019999,2]
[362277129,1748146234273,-800.25,0.00019999,2]
[362277130,1748146234282,-800.25,0.00019999,2]
[362277131,1748146234292,-800.25,0.00019999,2]
[362277132,1748146234549,-800.25,0.00019999,2]
[362277133,1748146234559,-800.25,0.00019999,2]
[362277134,1748146234568,-800.25,0.00019999,2]
[362277135,1748146234578,-800.25,0.00019999,2]
[362277136,1748146234588,-800.25,0.00019999,2]
[362277137,1748146234597,-800.25,0.00019999,2]
[362277138,1748146234607,-800.25,0.00019999,2]
[362277139,1748146234616,-800.25,0.00019999,2]